fUST/lending_fUST_20241123
["ID","MTS","AMOUNT","RATE_DAILY","PERIOD"]
[343116161,1732366271376,-200.0,0.00024657,2]
[343116162,1732366271385,-200.0,0.00024657,2]
[343116163,1732366271395,-638.51,0.00024657,2]
[343116164,1732366271405,-200.0,0.00024657,2]
[343116165,1732366271416,-200.0,0.00024657,2]
[343116166,1732366271425,-200.0,0.00024657,2]
[343116167,1732366271435,-200.0,0.00024657,2]
[343116168,1732366271444,-200.0,0.00024657,2]
[343116169,1732366271454,-200.0,0.00024657,2]
[343116170,1732366271464,-200.0,0.00024657,2]
[343116171,1732366271476,-200.0,0.00024657,2]
[343116172,1732366271486,-200.0,0.00024657,2]
[343116173,1732366271495,-200.0,0.00024657,2]
[343116174,1732366271505,-282.0474066,0.00024657,2]
[343116175,1732366271514,-885.71,0.00024657,2]
[343116176,1732366271524,-627.73973967,0.00024657,2]
[343116177,1732366271534,-351.51696175,0.00024657,2]
[343116178,1732366271544,-516.19,0.00024657,2]
[343116179,1732366271554,-593.45,0.00024657,2]
[343116180,1732366271564,-1282.52,0.00024657,2]
[343116181,1732366271574,-887.97,0.00024657,2]
[343116182,1732366271584,-2300.61,0.00024657,2]
[343116183,1732366271594,-528.07,0.00024657,2]
[343116184,1732366271604,-1538.6,0.00024657,2]
[343116185,1732366271614,-1008.44,0.00024657,2]
[343116186,1732366271623,-636.89,0.00024657,2]
[343116187,1732366271634,-32000.29,0.00024657,2]
[343116188,1732366271644,-534.97,0.00024657,2]
[343116189,1732366271654,-672.04,0.00024657,2]
[343116190,1732366271665,-626.8,0.00024657,2]
[343116191,1732366271676,-635.09,0.00024657,2]
[343116192,1732366271686,-706.69,0.00024657,2]
[343116193,1732366271696,-500.0,0.00024657,2]
[343116194,1732366271706,-1255.4,0.00024657,10]
[343116195,1732366271717,-1504.44,0.00024657,2]
[343116196,1732366271726,-4470.66,0.00024657,2]
[343116197,1732366271735,-1264.94,0.00024657,2]
[343116198,1732366271745,-597.49,0.00024657,2]
[343116199,1732366271756,-830.37,0.00024657,2]
[343116200,1732366271766,-2510.69,0.00024657,2]
[343116201,1732366271776,-1529.76,0.00024657,2]
[343116202,1732366271786,-500.0,0.00024657,2]
[343116203,1732366271798,-950.08,0.00024657,2]
[343116204,1732366271809,-2119.31,0.00024657,2]
[343116205,1732366271820,-618.96,0.00024657,2]
[343116206,1732366271831,-882.37,0.00024657,2]
[343116207,1732366271841,-375.82547686,0.00024657,2]
[343116208,1732366271850,-1056.35,0.00024657,2]
[343116209,1732366271860,-872.19,0.00024657,2]
[343116210,1732366271870,-1217.38,0.00024657,2]
[343116211,1732366271880,-576.84,0.00024657,2]
[343116212,1732366271890,-7473.65,0.00024657,2]
[343116213,1732366271901,-500.0,0.00024657,2]
[343116214,1732366271911,-590.73,0.00024657,2]
[343116215,1732366271923,-674.66,0.00024657,2]
[343116216,1732366271933,-538.85,0.00024657,2]
[343116217,1732366271943,-605.75,0.00024657,2]
[343116218,1732366271953,-850.07,0.00024657,2]
[343116219,1732366271968,-1816.65,0.00024657,2]
[343116220,1732366271984,-13459.67,0.00024657,2]
[343116221,1732366271995,-882.91,0.00024657,2]
[343116222,1732366272005,-5328.25,0.00024657,2]
[343116223,1732366272016,-700.55,0.00024657,2]
[343116224,1732366272026,-738.33,0.00024657,2]
[343116225,1732366272035,-575.52,0.00024657,2]
[343116226,1732366272046,-4056.23,0.00024657,2]
[343116227,1732366272056,-546.44,0.00024657,2]
[343116228,1732366272065,-1127.26,0.00024657,2]
[343116229,1732366272075,-889.01,0.00024657,2]
[343116230,1732366272085,-716.22,0.00024657,2]
[343116231,1732366272094,-191.225099,0.00024657,7]
[343116232,1732366272103,-191.225099,0.00024657,7]
[343116233,1732366272114,-1129.2,0.00024657,2]
[343116234,1732366272124,-200.0,0.00024658,15]
[343116235,1732366272134,-151.0,0.00024658,7]
[343116236,1732366272143,-151.0,0.00024658,7]
[343116237,1732366272153,-151.0,0.00024658,7]
[343116238,1732366272163,-25418.95,0.000247,2]
[343116239,1732366272172,-247383.123415,0.00024777,2]
[343116240,1732366272182,-314.12090985,0.00024782,2]
[343116241,1732366272191,-560.5,0.00024931,2]
[343116242,1732366272201,-607.85,0.00024931,2]
[343116243,1732366272211,-1635.9,0.00024931,2]
[343116244,1732366272225,-526.37,0.00024931,2]
[343116245,1732366272236,-332.96382709,0.00024931,2]
[343116246,1732366272247,-748.76,0.00024931,2]
[343116247,1732366272258,-578.27,0.00024931,2]
[343116248,1732366272268,-799.01,0.00024931,2]
[343116249,1732366272279,-660.9,0.00024931,2]
[343116250,1732366272290,-488.39000646,0.00024931,2]
[343116251,1732366272300,-1095.13,0.00024931,2]
[343116252,1732366272310,-660.43,0.00024931,2]
[343116253,1732366272319,-744.79,0.00024931,2]
[343116254,1732366272329,-602.21,0.00024931,2]
[343116255,1732366272339,-2349.5,0.00024931,2]
[343116256,1732366272349,-2006.5,0.00024931,2]
[343116257,1732366272359,-1551.55,0.00024931,2]
[343116258,1732366272369,-1039.57,0.00024931,2]
[343116259,1732366272378,-1747.31,0.00024931,2]
[343116260,1732366272388,-1202.85,0.00024931,2]
[343116261,1732366272397,-1000.07,0.00024931,2]
[343116262,1732366272407,-686.29,0.00024931,2]
[343116263,1732366272417,-1081.0,0.00024931,2]
[343116264,1732366272426,-1439.48,0.00024931,2]
[343116265,1732366272436,-604.53,0.00024931,2]
[343116266,1732366272475,-1113.01,0.00024931,2]
[343116267,1732366272485,-910.06,0.00024931,2]
[343116268,1732366272495,-1063.52,0.00024931,2]
[343116269,1732366272504,-1125.44,0.00024931,2]
[343116270,1732366272514,-999.35,0.00024931,2]
[343116271,1732366272523,-522.08,0.00024931,2]
[343116272,1732366272533,-1708.58,0.00024931,2]
[343116273,1732366272543,-1059.27,0.00024931,2]
[343116274,1732366272553,-552.4,0.00024931,2]
[343116275,1732366272562,-719.88,0.00024931,2]
[343116276,1732366272572,-615.14,0.00024931,2]
[343116277,1732366272582,-1102.89,0.00024931,2]
[343116278,1732366272592,-581.08,0.00024931,2]
[343116279,1732366272602,-1792.59,0.00024931,2]
[343116280,1732366272611,-677.62,0.00024931,2]
[343116281,1732366272621,-3879.56,0.00024931,2]
[343116282,1732366272631,-395.04496066,0.00024931,2]
[343116283,1732366272865,-268.94503934,0.00024931,2]
[343116284,1732366272875,-577.21,0.00024931,2]
[343116285,1732366272885,-500.0,0.00024931,2]
[343116286,1732366272895,-833.58,0.00024931,2]
[343116287,1732366272905,-1516.41,0.00024931,2]
[343116288,1732366272915,-1060.44,0.00024931,2]
[343116289,1732366272925,-500.0,0.00024931,2]
[343116290,1732366272935,-638.51,0.00024931,2]
[343116291,1732366272944,-885.71,0.00024931,2]
[343116292,1732366272954,-516.19,0.00024931,2]
[343116293,1732366272967,-593.45,0.00024931,2]
[343116294,1732366272977,-1282.52,0.00024931,2]
[343116295,1732366272987,-640.93496066,0.00024931,2]
[343116296,1732366272999,-247.03503934,0.00024931,2]
[343116297,1732366273009,-2300.61,0.00024931,2]
[343116298,1732366273019,-528.07,0.00024931,2]
[343116299,1732366273029,-727.50702197,0.00024931,2]
[343116300,1732366273082,618.1,0.00028805,120]
[343116301,1732366273106,35519.0,0.00028805,120]
[343116325,1732367140700,223.76,0.00028,120]
[343116378,1732367432850,-163.724344,0.00013422,2]
[343116380,1732367432860,-163.724344,0.00013973,2]
[343116382,1732367432869,-1408.9411415,0.00017875,2]
[343116384,1732367432878,-219.229495,0.00017927,2]
[343116386,1732367432887,-3000.0,0.00018127,2]
[343116388,1732367432897,-300.0,0.00019076,2]
[343116390,1732367432908,-1727.439783,0.00019077,2]
[343116392,1732367432918,-1018.787188,0.00019077,2]
[343116394,1732367432927,-171.72144,0.00019077,2]
[343116396,1732367432936,-431.859945,0.00019077,2]
[343116398,1732367432945,-171.721438,0.00019077,2]
[343116400,1732367432955,-500.0,0.00019178,2]
[343116402,1732367432965,-500.0,0.00019178,2]
[343116404,1732367432974,-500.0,0.00019178,2]
[343116406,1732367432983,-500.0,0.00019178,2]
[343116408,1732367432993,-509.63,0.00019178,2]
[343116410,1732367433003,-500.0,0.00019178,2]
[343116412,1732367433012,-500.0,0.00019178,2]
[343116414,1732367433022,-500.0,0.00019178,2]
[343116416,1732367433032,-500.0,0.00019178,2]
[343116418,1732367433042,-500.0,0.00019178,2]
[343116420,1732367433051,-500.0,0.00019178,2]
[343116422,1732367433062,-500.0,0.00019178,2]
[343116424,1732367433072,-500.0,0.00019178,2]
[343116426,1732367433082,-1119.64,0.00019178,2]
[343116428,1732367433091,-500.0,0.00019178,2]
[343116430,1732367433104,-500.0,0.00019178,2]
[343116432,1732367433113,-500.0,0.00019178,2]
[343116434,1732367433126,-500.0,0.00019178,2]
[343116436,1732367433136,-500.0,0.00019178,2]
[343116438,1732367433146,-500.0,0.00019178,2]
[343116440,1732367433159,-500.0,0.00019178,2]
[343116442,1732367433170,-500.0,0.00019178,2]
[343116444,1732367433183,-500.0,0.00019178,2]
[343116446,1732367433194,-500.0,0.00019178,2]
[343116448,1732367433204,-500.0,0.00019178,2]
[343116450,1732367433215,-500.0,0.00019178,2]
[343116452,1732367433225,-500.0,0.00019178,2]
[343116454,1732367433236,-500.0,0.00019178,2]
[343116456,1732367433246,-522.84,0.00019178,2]
[343116458,1732367433255,-1131.53,0.00019178,2]
[343116460,1732367433266,-500.0,0.00019178,2]
[343116462,1732367433275,-500.0,0.00019178,2]
[343116464,1732367433285,-200.0,0.00019178,2]
[343116466,1732367433295,-500.0,0.00019178,2]
[343116468,1732367433304,-500.0,0.00019178,2]
[343116470,1732367433313,-500.0,0.00019178,2]
[343116472,1732367433323,-500.0,0.00019178,2]
[343116474,1732367433332,-500.0,0.00019178,2]
[343116476,1732367433341,-500.0,0.00019178,2]
[343116478,1732367433351,-500.0,0.00019178,2]
[343116480,1732367433360,-575.15,0.00019178,2]
[343116482,1732367433370,-500.0,0.00019178,2]
[343116484,1732367433379,-500.0,0.00019178,2]
[343116486,1732367433388,-756.3,0.00019178,2]
[343116488,1732367433399,-500.0,0.00019178,2]
[343116490,1732367433412,-500.0,0.00019178,2]
[343116492,1732367433423,-500.0,0.00019178,2]
[343116493,1732367433432,-500.0,0.00019178,2]
[343116495,1732367433442,-500.0,0.00019178,2]
[343116497,1732367433452,-500.0,0.00019178,2]
[343116498,1732367433463,-500.0,0.00019178,2]
[343116499,1732367433472,-500.0,0.00019178,2]
[343116500,1732367433482,-500.0,0.00019178,2]
[343116501,1732367433491,-500.0,0.00019178,2]
[343116502,1732367433502,-601.0730591,0.00019178,2]
[343116503,1732367433512,-500.0,0.00019178,2]
[343116504,1732367433522,-500.0,0.00019178,2]
[343116505,1732367433531,-500.0,0.00019178,2]
[343116506,1732367433541,-500.0,0.00019178,2]
[343116507,1732367433552,-500.0,0.00019178,2]
[343116508,1732367433561,-500.0,0.00019178,2]
[343116509,1732367433571,-558.25794629,0.00019178,2]
[343116510,1732367433581,-500.0,0.00019178,2]
[343116511,1732367433591,-500.0,0.00019178,2]
[343116512,1732367433601,-500.0,0.00019178,2]
[343116513,1732367433611,-500.0,0.00019178,2]
[343116514,1732367433620,-500.0,0.00019178,2]
[343116515,1732367433630,-500.0,0.00019178,2]
[343116516,1732367433640,-500.0,0.00019178,2]
[343116517,1732367433649,-500.0,0.00019178,2]
[343116518,1732367433662,-1303.95,0.00019178,2]
[343116519,1732367433671,-500.0,0.00019178,2]
[343116520,1732367433681,-500.0,0.00019178,2]
[343116521,1732367433690,-500.0,0.00019178,2]
[343116522,1732367433701,-500.0,0.00019178,2]
[343116523,1732367433710,-500.0,0.00019178,2]
[343116524,1732367433720,-836.89,0.00019178,2]
[343116525,1732367433729,-9333.42,0.00019178,2]
[343116526,1732367433739,-500.0,0.00019178,2]
[343116527,1732367433748,-509.92,0.00019178,2]
[343116528,1732367433758,-500.0,0.00019178,2]
[343116529,1732367433768,-500.0,0.00019178,2]
[343116530,1732367433777,-500.0,0.00019178,2]
[343116531,1732367433786,-706.44,0.00019178,2]
[343116532,1732367433796,-500.0,0.00019178,2]
[343116533,1732367433806,-500.0,0.00019178,2]
[343116534,1732367433816,-498.58193212,0.00019178,2]
[343116535,1732367433825,-500.0,0.00019178,2]
[343116536,1732367433835,-500.0,0.00019178,2]
[343116537,1732367433845,-500.0,0.00019178,2]
[343116538,1732367433854,-500.0,0.00019178,2]
[343116539,1732367433864,-500.0,0.00019178,2]
[343116540,1732367433873,-500.0,0.00019178,2]
[343116541,1732367433883,-500.0,0.00019178,2]
[343116542,1732367433892,-500.0,0.00019178,2]
[343116543,1732367433902,-500.0,0.00019178,2]
[343116544,1732367433916,-500.0,0.00019178,2]
[343116545,1732367433926,-500.0,0.00019178,2]
[343116546,1732367433936,-2491.21,0.00019178,2]
[343116547,1732367433946,-500.0,0.00019178,2]
[343116548,1732367433956,-500.0,0.00019178,2]
[343116549,1732367433966,-500.0,0.00019178,2]
[343116550,1732367433976,-500.0,0.00019178,2]
[343116551,1732367433985,-500.0,0.00019178,2]
[343116552,1732367433995,-500.0,0.00019178,2]
[343116553,1732367434005,-500.0,0.00019178,2]
[343116554,1732367434015,-550.14,0.00019178,2]
[343116555,1732367434025,-500.0,0.00019178,2]
[343116556,1732367434035,-500.0,0.00019178,2]
[343116557,1732367434045,-605.55,0.00019178,2]
[343116558,1732367434054,-500.0,0.00019178,2]
[343116559,1732367434064,-4486.55,0.00019178,2]
[343116560,1732367434074,-1776.08,0.00019178,2]
[343116561,1732367434085,-685.27,0.00019178,2]
[343116562,1732367434094,-500.0,0.00019178,2]
[343116563,1732367434103,-500.0,0.00019178,2]
[343116564,1732367434113,-500.0,0.00019178,2]
[343116565,1732367434123,-500.0,0.00019178,2]
[343116566,1732367434133,-585.23,0.00019178,2]
[343116567,1732367434143,-1295.74,0.00019178,2]
[343116568,1732367434152,-500.0,0.00019178,2]
[343116569,1732367434165,-500.0,0.00019178,2]
[343116570,1732367434176,-373.37263427,0.00019178,2]
[343116571,1732367434190,-164.680817,0.00019178,2]
[343116572,1732367434200,-1727.439783,0.00019316,2]
[343116573,1732367434209,-1018.787188,0.00019316,2]
[343116574,1732367434221,-431.859945,0.00019316,2]
[343116575,1732367434231,-330.0,0.00019352,2]
[343116576,1732367434241,-598.2072683,0.00019452,2]
[343116577,1732367434251,-500.0,0.00019452,2]
[343116578,1732367434264,-500.0,0.00019452,2]
[343116579,1732367434274,-500.0,0.00019452,2]
[343116580,1732367434284,-509.63,0.00019452,2]
[343116581,1732367434293,-500.0,0.00019452,2]
[343116582,1732367434303,-500.0,0.00019452,2]
[343116583,1732367434312,-500.0,0.00019452,2]
[343116584,1732367434322,-500.0,0.00019452,2]
[343116585,1732367434331,-500.0,0.00019452,2]
[343116586,1732367434341,-442.39814819,0.00019452,2]
[343116587,1732367434350,-500.0,0.00019452,2]
[343116588,1732367434360,-500.0,0.00019452,2]
[343116589,1732367434369,-1119.64,0.00019452,2]
[343116590,1732367434379,-500.0,0.00019452,2]
[343116591,1732367434388,-500.0,0.00019452,2]
[343116592,1732367434397,-500.0,0.00019452,2]
[343116593,1732367434407,-500.0,0.00019452,2]
[343116594,1732367434417,-500.0,0.00019452,2]
[343116595,1732367434426,-500.0,0.00019452,2]
[343116596,1732367434436,-500.0,0.00019452,2]
[343116597,1732367434446,-500.0,0.00019452,2]
[343116598,1732367434455,-500.0,0.00019452,2]
[343116599,1732367434465,-500.0,0.00019452,2]
[343116600,1732367434474,-500.0,0.00019452,2]
[343116601,1732367434483,-500.0,0.00019452,2]
[343116602,1732367434493,-500.0,0.00019452,2]
[343116603,1732367434503,-500.0,0.00019452,2]
[343116604,1732367434512,-522.84,0.00019452,2]
[343116605,1732367434522,-1131.53,0.00019452,2]
[343116606,1732367434532,-500.0,0.00019452,2]
[343116607,1732367434541,-500.0,0.00019452,2]
[343116608,1732367434551,-283.55761746,0.00019452,2]
[343116609,1732367434561,-500.0,0.00019452,2]
[343116610,1732367434570,-500.0,0.00019452,2]
[343116611,1732367434580,-500.0,0.00019452,2]
[343116612,1732367434590,-500.0,0.00019452,2]
[343116613,1732367434599,-500.0,0.00019452,2]
[343116614,1732367434609,-500.0,0.00019452,2]
[343116615,1732367434619,-500.0,0.00019452,2]
[343116616,1732367434628,-575.15,0.00019452,2]
[343116617,1732367434638,-500.0,0.00019452,2]
[343116618,1732367434648,-500.0,0.00019452,2]
[343116619,1732367434659,-756.3,0.00019452,2]
[343116620,1732367434668,-500.0,0.00019452,2]
[343116621,1732367434678,-500.0,0.00019452,2]
[343116622,1732367434688,-500.0,0.00019452,2]
[343116623,1732367434698,-500.0,0.00019452,2]
[343116624,1732367434707,-500.0,0.00019452,2]
[343116625,1732367434716,-500.0,0.00019452,2]
[343116626,1732367434725,-500.0,0.00019452,2]
[343116627,1732367434735,-168.8203895,0.00019452,2]
[343116628,1732367434744,-500.0,0.00019452,2]
[343116629,1732367434753,-500.0,0.00019452,2]
[343116630,1732367434763,-500.0,0.00019452,2]
[343116631,1732367434773,-500.0,0.00019452,2]
[343116632,1732367434783,-500.0,0.00019452,2]
[343116633,1732367434793,-500.0,0.00019452,2]
[343116634,1732367434803,-500.0,0.00019452,2]
[343116635,1732367434812,-500.0,0.00019452,2]
[343116636,1732367434821,-500.0,0.00019452,2]
[343116637,1732367434832,-500.0,0.00019452,2]
[343116638,1732367434841,-500.0,0.00019452,2]
[343116639,1732367434850,-500.0,0.00019452,2]
[343116640,1732367434859,-500.0,0.00019452,2]
[343116641,1732367434869,-500.0,0.00019452,2]
[343116642,1732367434878,-500.0,0.00019452,2]
[343116643,1732367434887,-500.0,0.00019452,2]
[343116644,1732367434896,-1303.95,0.00019452,2]
[343116645,1732367434907,-500.0,0.00019452,2]
[343116646,1732367434917,-500.0,0.00019452,2]
[343116647,1732367434927,-500.0,0.00019452,2]
[343116648,1732367434937,-500.0,0.00019452,2]
[343116649,1732367434947,-500.0,0.00019452,2]
[343116650,1732367434957,-836.89,0.00019452,2]
[343116651,1732367434967,-9333.42,0.00019452,2]
[343116652,1732367434977,-500.0,0.00019452,2]
[343116653,1732367434988,-509.92,0.00019452,2]
[343116654,1732367434998,-500.0,0.00019452,2]
[343116655,1732367435007,-500.0,0.00019452,2]
[343116656,1732367435017,-500.0,0.00019452,2]
[343116657,1732367435027,-706.44,0.00019452,2]
[343116658,1732367435038,-500.0,0.00019452,2]
[343116659,1732367435048,-500.0,0.00019452,2]
[343116660,1732367435058,-500.0,0.00019452,2]
[343116661,1732367435067,-500.0,0.00019452,2]
[343116662,1732367435077,-500.0,0.00019452,2]
[343116663,1732367435087,-500.0,0.00019452,2]
[343116664,1732367435097,-500.0,0.00019452,2]
[343116665,1732367435107,-500.0,0.00019452,2]
[343116666,1732367435116,-500.0,0.00019452,2]
[343116667,1732367435126,-606.72792349,0.00019452,2]
[343116668,1732367435136,-519.0727762,0.00019452,2]
[343116669,1732367435146,-500.0,0.00019452,2]
[343116670,1732367435155,-500.0,0.00019452,2]
[343116671,1732367435171,-2491.21,0.00019452,2]
[343116672,1732367435184,-500.0,0.00019452,2]
[343116673,1732367435195,-500.0,0.00019452,2]
[343116674,1732367435204,-500.0,0.00019452,2]
[343116675,1732367435215,-500.0,0.00019452,2]
[343116676,1732367435225,-500.0,0.00019452,2]
[343116677,1732367435234,-500.0,0.00019452,2]
[343116678,1732367435243,-500.0,0.00019452,2]
[343116679,1732367435255,-550.14,0.00019452,2]
[343116680,1732367435265,-500.0,0.00019452,2]
[343116681,1732367435275,-500.0,0.00019452,2]
[343116682,1732367435284,-605.55,0.00019452,2]
[343116683,1732367435295,-500.0,0.00019452,2]
[343116684,1732367435304,-4486.55,0.00019452,2]
[343116685,1732367435313,-1776.08,0.00019452,2]
[343116686,1732367435323,-685.27,0.00019452,2]
[343116687,1732367435332,-500.0,0.00019452,2]
[343116688,1732367435342,-500.0,0.00019452,2]
[343116689,1732367435351,-500.0,0.00019452,2]
[343116690,1732367435361,-585.23,0.00019452,2]
[343116691,1732367435371,-1295.74,0.00019452,2]
[343116692,1732367435381,-500.0,0.00019452,2]
[343116693,1732367435391,-500.0,0.00019452,2]
[343116694,1732367435402,-500.0,0.00019553,2]
[343116695,1732367435415,-171.721438,0.00019554,2]
[343116696,1732367435425,-1727.439783,0.00019554,2]
[343116697,1732367435435,-1018.787188,0.00019554,2]
[343116698,1732367435445,-431.859945,0.00019554,2]
[343116699,1732367435455,-500.0,0.00019726,2]
[343116700,1732367435465,-500.0,0.00019726,2]
[343116701,1732367435474,-521.96730446,0.00019726,2]
[343116702,1732367435484,-509.63,0.00019726,2]
[343116703,1732367435494,-500.0,0.00019726,2]
[343116704,1732367435503,-500.0,0.00019726,2]
[343116705,1732367435514,-500.0,0.00019726,2]
[343116706,1732367435523,-500.0,0.00019726,2]
[343116707,1732367435533,-500.0,0.00019726,2]
[343116708,1732367435543,-500.0,0.00019726,2]
[343116709,1732367435553,-500.0,0.00019726,2]
[343116710,1732367435714,-1119.64,0.00019726,2]
[343116711,1732367435724,-500.0,0.00019726,2]
[343116712,1732367435734,-500.0,0.00019726,2]
[343116713,1732367435743,-500.0,0.00019726,2]
[343116714,1732367435753,-500.0,0.00019726,2]
[343116715,1732367435762,-500.0,0.00019726,2]
[343116716,1732367435772,-500.0,0.00019726,2]
[343116717,1732367435781,-500.0,0.00019726,2]
[343116718,1732367435791,-481.64633755,0.00019726,2]
[343116719,1732367435800,-500.0,0.00019726,2]
[343116720,1732367435810,-500.0,0.00019726,2]
[343116721,1732367435820,-500.0,0.00019726,2]
[343116722,1732367435830,-500.0,0.00019726,2]
[343116723,1732367435840,-500.0,0.00019726,2]
[343116724,1732367435850,-500.0,0.00019726,2]
[343116725,1732367435860,-522.84,0.00019726,2]
[343116726,1732367435871,-1131.53,0.00019726,2]
[343116727,1732367435882,-500.0,0.00019726,2]
[343116728,1732367435892,-500.0,0.00019726,2]
[343116729,1732367435902,-500.0,0.00019726,2]
[343116730,1732367435917,-500.0,0.00019726,2]
[343116731,1732367435926,-500.0,0.00019726,2]
[343116732,1732367435936,-500.0,0.00019726,2]
[343116733,1732367435946,-500.0,0.00019726,2]
[343116734,1732367435955,-500.0,0.00019726,2]
[343116735,1732367435965,-500.0,0.00019726,2]
[343116736,1732367435974,-575.15,0.00019726,2]
[343116737,1732367435984,-500.0,0.00019726,2]
[343116738,1732367435993,-500.0,0.00019726,2]
[343116739,1732367436003,-756.3,0.00019726,2]
[343116740,1732367436013,-500.0,0.00019726,2]
[343116741,1732367436023,-500.0,0.00019726,2]
[343116742,1732367436033,-500.0,0.00019726,2]
[343116743,1732367436043,-500.0,0.00019726,2]
[343116744,1732367436053,-500.0,0.00019726,2]
[343116745,1732367436064,-500.0,0.00019726,2]
[343116746,1732367436074,-500.0,0.00019726,2]
[343116747,1732367436084,-500.0,0.00019726,2]
[343116748,1732367436094,-500.0,0.00019726,2]
[343116749,1732367436104,-500.0,0.00019726,2]
[343116750,1732367436114,-500.0,0.00019726,2]
[343116751,1732367436124,-500.0,0.00019726,2]
[343116752,1732367436134,-500.0,0.00019726,2]
[343116753,1732367436143,-500.0,0.00019726,2]
[343116754,1732367436153,-500.0,0.00019726,2]
[343116755,1732367436165,-500.0,0.00019726,2]
[343116756,1732367436176,-500.0,0.00019726,2]
[343116757,1732367436188,-500.0,0.00019726,2]
[343116758,1732367436198,-500.0,0.00019726,2]
[343116759,1732367436208,-500.0,0.00019726,2]
[343116760,1732367436219,-500.0,0.00019726,2]
[343116761,1732367436240,-500.0,0.00019726,2]
[343116762,1732367436250,-1303.95,0.00019726,2]
[343116763,1732367436261,-500.0,0.00019726,2]
[343116764,1732367436272,-500.0,0.00019726,2]
[343116765,1732367436282,-611.08171862,0.00019726,2]
[343116766,1732367436293,-500.0,0.00019726,2]
[343116767,1732367436303,-500.0,0.00019726,2]
[343116768,1732367436313,-500.0,0.00019726,2]
[343116769,1732367436324,-836.89,0.00019726,2]
[343116770,1732367436334,-9333.42,0.00019726,2]
[343116771,1732367436344,-500.0,0.00019726,2]
[343116772,1732367436355,-509.92,0.00019726,2]
[343116773,1732367436364,-500.0,0.00019726,2]
[343116774,1732367436374,-500.0,0.00019726,2]
[343116775,1732367436384,-500.0,0.00019726,2]
[343116776,1732367436394,-706.44,0.00019726,2]
[343116777,1732367436403,-500.0,0.00019726,2]
[343116778,1732367436416,-500.0,0.00019726,2]
[343116779,1732367436426,-500.0,0.00019726,2]
[343116780,1732367436436,-500.0,0.00019726,2]
[343116781,1732367436446,-500.0,0.00019726,2]
[343116782,1732367436456,-500.0,0.00019726,2]
[343116783,1732367436466,-500.0,0.00019726,2]
[343116784,1732367436476,-500.0,0.00019726,2]
[343116785,1732367436485,-500.0,0.00019726,2]
[343116786,1732367436495,-500.0,0.00019726,2]
[343116787,1732367436505,-500.0,0.00019726,2]
[343116788,1732367436515,-2491.21,0.00019726,2]
[343116789,1732367436525,-500.0,0.00019726,2]
[343116790,1732367436535,-500.0,0.00019726,2]
[343116791,1732367436544,-500.0,0.00019726,2]
[343116792,1732367436554,-500.0,0.00019726,2]
[343116793,1732367436564,-500.0,0.00019726,2]
[343116794,1732367436574,-500.0,0.00019726,2]